fUSD/lending_fUSD_20250606
["ID","MTS","AMOUNT","RATE_DAILY","PERIOD"]
[364776779,1749238272412,-918.951478,0.00028219,7]
[364776780,1749238272425,-918.951478,0.00028219,7]
[364776781,1749238272436,-798.82,0.00028219,5]
[364776782,1749238272448,-151.0,0.00028219,7]
[364776783,1749238272460,-151.0,0.00028219,7]
[364776784,1749238272472,-151.0,0.00028219,7]
[364776785,1749238272484,-480.0,0.00028219,5]
[364776786,1749238272496,-480.0,0.00028219,5]
[364776787,1749238272509,-244.741036,0.00028219,7]
[364776788,1749238272523,-480.0,0.00028219,5]
[364776789,1749238272534,-841.94,0.00028219,5]
[364776790,1749238272545,-1110.18,0.00028219,5]
[364776791,1749238272558,-541.95,0.00028219,5]
[364776792,1749238272571,-501.99,0.00028219,5]
[364776793,1749238272584,-734.58,0.00028219,5]
[364776794,1749238272596,-940.18,0.00028219,5]
[364776795,1749238272617,-480.0,0.00028219,5]
[364776796,1749238272630,-2677.08,0.00028219,5]
[364776797,1749238272641,-748.04,0.00028219,5]
[364776798,1749238272653,-493.75,0.00028219,5]
[364776799,1749238272664,-480.0,0.00028219,5]
[364776800,1749238272677,-882.46,0.00028219,5]
[364776801,1749238272690,-480.0,0.00028219,5]
[364776802,1749238272702,-635.55,0.00028219,5]
[364776803,1749238272715,-151.0,0.00028219,7]
[364776804,1749238272727,-526.86,0.00028219,5]
[364776805,1749238272736,-59280.37,0.00028219,5]
[364776806,1749238272747,-1593.82,0.00028219,5]
[364776807,1749238272758,-480.0,0.00028219,5]
[364776808,1749238272767,-2740.76,0.00028219,5]
[364776809,1749238272777,-480.0,0.00028219,5]
[364776810,1749238272787,-480.0,0.00028219,5]
[364776811,1749238272797,-1096.11,0.00028219,5]
[364776812,1749238272807,-511.43,0.00028219,5]
[364776813,1749238272817,-480.0,0.00028219,5]
[364776814,1749238272827,-480.0,0.00028219,5]
[364776815,1749238272837,-1000.0,0.00028219,2]
[364776816,1749238272846,-1254.37,0.00028219,5]
[364776817,1749238272856,-8256.04,0.00028219,5]
[364776818,1749238272865,-480.0,0.00028219,5]
[364776819,1749238272875,-2434.11,0.00028219,5]
[364776820,1749238272885,-3890.87,0.00028219,5]
[364776821,1749238272894,-996.25,0.00028219,5]
[364776822,1749238272904,-665.27,0.00028219,5]
[364776823,1749238272912,-1569.61,0.00028219,5]
[364776824,1749238272923,-480.0,0.00028219,5]
[364776825,1749238272932,-1000.0,0.00028219,5]
[364776826,1749238272941,-480.0,0.00028219,5]
[364776827,1749238272951,-528.51,0.00028219,5]
[364776828,1749238272960,-714.18,0.00028219,5]
[364776829,1749238272969,-675.52,0.00028219,5]
[364776830,1749238272978,-1429.09,0.00028219,5]
[364776831,1749238272987,-665.04,0.00028219,5]
[364776832,1749238272996,-151.0,0.00028219,7]
[364776833,1749238273005,-2692.59,0.00028219,5]
[364776834,1749238273015,-2650.03,0.00028219,5]
[364776835,1749238273024,-189.067661,0.00028219,7]
[364776836,1749238273033,-1407.53,0.00028219,5]
[364776837,1749238273042,-480.0,0.00028219,5]
[364776838,1749238273051,-1044.58,0.00028219,5]
[364776839,1749238273061,-189.067661,0.00028219,7]
[364776840,1749238273071,-179.508406,0.00028219,7]
[364776841,1749238273080,-1121.69,0.00028219,5]
[364776842,1749238273090,-461.975126,0.00028219,7]
[364776843,1749238273099,-1259.89,0.00028219,5]
[364776844,1749238273109,-151.0,0.00028219,7]
[364776845,1749238273118,-179.508406,0.00028219,7]
[364776846,1749238273128,-1000.59,0.00028219,5]
[364776847,1749238273138,-461.975126,0.00028219,7]
[364776848,1749238273147,-682.93,0.00028219,5]
[364776849,1749238273157,-10449.09,0.00028219,5]
[364776850,1749238273167,-480.0,0.00028219,5]
[364776851,1749238273176,-2196.0,0.00028219,5]
[364776852,1749238273186,-2596.53,0.00028219,5]
[364776853,1749238273196,-2684.12,0.00028219,5]
[364776854,1749238273204,-480.0,0.00028219,5]
[364776855,1749238273214,-480.0,0.00028219,5]
[364776856,1749238273224,-1035.64,0.00028219,5]
[364776857,1749238273234,-1413.85,0.00028219,5]
[364776858,1749238273244,-1346.8,0.00028219,5]
[364776859,1749238273254,-269.254107,0.00028219,7]
[364776860,1749238273264,-1405.33,0.00028219,5]
[364776861,1749238273274,-789.6,0.00028219,5]
[364776862,1749238273284,-480.0,0.00028219,5]
[364776863,1749238273294,-269.254107,0.00028219,7]
[364776864,1749238273304,-151.0,0.00028219,7]
[364776865,1749238273314,-685.7,0.00028219,5]
[364776866,1749238273324,-887.66,0.00028219,5]
[364776867,1749238273334,-480.0,0.00028219,5]
[364776868,1749238273344,-1130.7,0.00028219,5]
[364776869,1749238273354,-480.0,0.00028219,5]
[364776870,1749238273364,-480.0,0.00028219,5]
[364776871,1749238273374,-2132.1,0.00028219,5]
[364776872,1749238273383,-480.0,0.00028219,5]
[364776873,1749238273394,-1647.92,0.00028219,5]
[364776874,1749238273403,-834.35,0.00028219,5]
[364776875,1749238273413,-4392.99,0.00028219,5]
[364776876,1749238273424,-3015.43,0.00028219,5]
[364776877,1749238273434,-480.0,0.00028219,5]
[364776878,1749238273444,-1470.46,0.00028219,5]
[364776879,1749238273454,-1546.73,0.00028219,5]
[364776880,1749238273464,-1479.99,0.00028219,5]
[364776881,1749238273474,-1186.47,0.00028219,5]
[364776882,1749238273483,-514.62,0.00028219,5]
[364776883,1749238273493,-835.23,0.00028219,5]
[364776884,1749238273503,-480.0,0.00028219,5]
[364776885,1749238273516,-1102.69,0.00028219,5]
[364776886,1749238273526,-689.03,0.00028219,5]
[364776887,1749238273536,-1040.68,0.00028219,5]
[364776888,1749238273547,-995.31,0.00028219,5]
[364776889,1749238273556,-480.0,0.00028219,5]
[364776890,1749238273566,-523.71,0.00028219,5]
[364776891,1749238273576,-1046.65,0.00028219,5]
[364776892,1749238273586,-480.0,0.00028219,5]
[364776893,1749238273596,-480.0,0.00028219,5]
[364776894,1749238273605,-3516.83,0.00028219,5]
[364776895,1749238273614,-480.0,0.00028219,5]
[364776896,1749238274329,-7192.4,0.00028219,5]
[364776897,1749238274355,-480.0,0.00028219,5]
[364776898,1749238274375,-480.0,0.00028219,5]
[364776899,1749238274397,-1068.47,0.00028219,5]
[364776900,1749238274417,-843.7,0.00028219,5]
[364776901,1749238274432,-480.0,0.00028219,5]
[364776902,1749238274441,-1025.1,0.00028219,5]
[364776903,1749238274450,-579.69,0.00028219,5]
[364776904,1749238274459,-618.2,0.00028219,5]
[364776905,1749238274468,-606.91,0.00028219,5]
[364776906,1749238274478,-480.0,0.00028219,5]
[364776907,1749238274486,-7137.4,0.00028219,5]
[364776908,1749238274496,-480.0,0.00028219,5]
[364776909,1749238274506,-151.0,0.00028219,7]
[364776910,1749238274519,-2026.65,0.00028219,5]
[364776911,1749238274528,-2994.18,0.00028219,5]
[364776912,1749238274538,-11496.53,0.00028219,5]
[364776913,1749238274547,-1784.57,0.00028219,5]
[364776914,1749238274558,-514.45,0.00028219,5]
[364776915,1749238274567,-480.0,0.00028219,5]
[364776916,1749238274576,-1232.611643,0.00028219,7]
[364776917,1749238274587,-480.0,0.00028219,5]
[364776918,1749238274597,-480.0,0.00028219,5]
[364776919,1749238274606,-3152.9,0.00028219,5]
[364776920,1749238274615,-1227.31,0.00028219,5]
[364776921,1749238274625,-480.0,0.00028219,5]
[364776922,1749238274634,-497.39,0.00028219,5]
[364776923,1749238274643,-1232.611643,0.00028219,7]
[364776924,1749238274652,-4337.15,0.00028219,5]
[364776925,1749238274661,-480.0,0.00028219,5]
[364776926,1749238274672,-480.0,0.00028219,5]
[364776927,1749238274682,-1547.12,0.00028219,5]
[364776928,1749238274693,-629.61201637,0.00028219,5]
[364776929,1749238274703,-3302.16,0.00028219,5]
[364776930,1749238274712,-533.36,0.00028219,5]
[364776931,1749238274722,-189.938106,0.00028219,7]
[364776932,1749238274731,-747.92,0.00028219,5]
[364776933,1749238274741,-151.0,0.00028219,7]
[364776934,1749238274750,-1427.98,0.00028219,5]
[364776935,1749238274760,-572.16,0.00028219,5]
[364776936,1749238274769,-577.87,0.00028219,5]
[364776937,1749238274778,-480.0,0.00028219,5]
[364776938,1749238274788,-189.938106,0.00028219,7]
[364776939,1749238274798,-151.0,0.00028219,7]
[364776940,1749238274808,-1647.97,0.00028219,5]
[364776941,1749238274818,-480.0,0.00028219,5]
[364776942,1749238274828,-480.0,0.00028219,5]
[364776943,1749238274839,-972.75,0.00028219,5]
[364776944,1749238274848,-1458.85,0.00028219,5]
[364776945,1749238274858,-551.69,0.00028219,5]
[364776946,1749238274868,-480.0,0.00028219,5]
[364776947,1749238274878,-1271.48,0.00028219,5]
[364776948,1749238274888,-2558.54,0.00028219,5]
[364776949,1749238274898,-744.59,0.00028219,5]
[364776950,1749238274907,-535.17,0.00028219,5]
[364776951,1749238274916,-1780.07,0.00028219,5]
[364776952,1749238274928,-825.48,0.00028219,5]
[364776953,1749238274937,-1087.45,0.00028219,5]
[364776954,1749238274946,-480.0,0.00028219,5]
[364776955,1749238274956,-3642.41,0.00028219,5]
[364776956,1749238274966,-602.35,0.00028219,5]
[364776957,1749238274975,-457.404501,0.00028219,5]
[364776958,1749238274984,-980.76,0.00028219,5]
[364776959,1749238274993,-2952.08,0.00028219,5]
[364776960,1749238275002,-1491.88,0.00028219,5]
[364776961,1749238275012,-513.98,0.00028219,5]
[364776962,1749238275021,-545.79,0.00028219,5]
[364776963,1749238275030,-480.0,0.00028219,5]
[364776964,1749238275040,-480.0,0.00028219,5]
[364776965,1749238275049,-533.03,0.00028219,5]
[364776966,1749238275059,-1677.66,0.00028219,5]
[364776967,1749238275068,-480.0,0.00028219,5]
[364776968,1749238275077,-480.0,0.00028219,5]
[364776969,1749238275087,-4496.09,0.00028219,5]
[364776970,1749238275096,-1755.28,0.00028219,5]
[364776971,1749238275105,-1692.52,0.00028219,5]
[364776972,1749238275115,-662.984692,0.00028219,7]
[364776973,1749238275124,-1650.3,0.00028219,5]
[364776974,1749238275134,-835.24,0.00028219,5]
[364776975,1749238275144,-480.0,0.00028219,5]
[364776976,1749238275154,-480.0,0.00028219,2]
[364776977,1749238275163,-5267.72,0.00028219,5]
[364776978,1749238275174,-662.984692,0.00028219,7]
[364776979,1749238275184,-934.457951,0.00028219,5]
[364776980,1749238275194,-480.0,0.00028219,5]
[364776981,1749238275203,-502.12,0.00028219,5]
[364776982,1749238275213,-729.42,0.00028219,5]
[364776983,1749238275222,-1800.89,0.00028219,5]
[364776984,1749238275232,-699.03,0.00028219,5]
[364776985,1749238275241,-498.83,0.00028219,5]
[364776986,1749238275250,-1536.39,0.00028219,5]
[364776987,1749238275260,-5553.8,0.00028219,5]
[364776988,1749238275269,-698.46,0.00028219,2]
[364776989,1749238275279,-480.0,0.00028219,5]
[364776990,1749238275289,-480.0,0.00028219,5]
[364776991,1749238275299,-900.05,0.00028219,5]
[364776992,1749238275309,-694.21,0.00028219,5]
[364776993,1749238275319,-2081.72,0.00028219,5]
[364776994,1749238275328,-480.0,0.00028219,5]
[364776995,1749238275339,-1295.96,0.00028219,5]
[364776996,1749238275348,-483.69,0.00028219,5]
[364776997,1749238275357,-484.44,0.00028219,5]
[364776998,1749238275367,-480.0,0.00028219,5]
[364776999,1749238275376,-10178.54,0.00028219,5]
[364777000,1749238275385,-480.0,0.00028219,5]
[364777001,1749238275395,-480.0,0.00028219,5]
[364777002,1749238275405,-2453.62,0.00028219,5]
[364777003,1749238275414,-8052.1,0.00028219,5]
[364777004,1749238275423,-150.0,0.0002822,2]
[364777005,1749238275433,-193.66689883,0.00028221,5]
[364777006,1749238275443,-617.50445255,0.00028225,2]
[364777007,1749238275454,-150.0,0.00028226,2]
[364777008,1749238275464,-382.49554745,0.00028245,2]
[364777009,1749238275473,-787.0,0.00028246,5]
[364777010,1749238275483,-597.0,0.00028246,5]
[364777011,1749238275493,-1000.0,0.00028253,2]
[364777012,1749238275503,-151.0,0.00028273,7]
[364777013,1749238275516,-151.0,0.00028273,7]
[364777014,1749238275527,-261.054565,0.00028273,7]
[364777015,1749238275536,-261.054565,0.00028273,7]
[364777016,1749238275545,-172.604956,0.00028273,7]
[364777017,1749238275557,-172.604956,0.00028273,7]
[364777018,1749238275567,-176.288002,0.00028273,7]
[364777019,1749238275577,-176.288002,0.00028273,7]
[364777020,1749238275587,-190.889101,0.00028273,7]
[364777021,1749238275596,-190.889101,0.00028273,7]
[364777022,1749238275606,-787.0,0.00028274,5]
[364777023,1749238275617,-597.0,0.00028274,5]
[364777024,1749238275626,-918.951478,0.00028276,7]
[364777025,1749238275635,-918.951478,0.00028276,7]
[364777026,1749238275644,-151.0,0.00028276,7]
[364777027,1749238275653,-150.0,0.00028291,2]
[364777028,1749238275663,-150.0,0.00028297,2]
[364777029,1749238275672,-1000.0,0.000283,2]
[364777030,1749238275680,-1000.0,0.000283,2]
[364777031,1749238275689,-1000.0,0.000283,2]
[364777032,1749238275698,-1141.0,0.000283,2]
[364777033,1749238275707,-200.0,0.000283,2]
[364777034,1749238275715,-787.0,0.00028301,5]
[364777035,1749238275724,-597.0,0.00028301,5]
[364777036,1749238275733,-948.51001956,0.00028318,2]
[364777037,1749238275742,-1000.0,0.00028321,5]
[364777038,1749238275751,-1000.0,0.00028321,5]
[364777039,1749238275761,-1000.0,0.00028321,2]
[364777040,1749238275769,-150.0,0.00028324,2]
[364777041,1749238275779,-787.0,0.00028328,5]
[364777042,1749238275788,-597.0,0.00028328,5]
[364777043,1749238275797,-150.0,0.00028334,2]
[364777044,1749238275806,-150.0,0.0002834,2]
[364777045,1749238275815,-741.23633557,0.00028348,18]
[364777046,1749238275824,-150.0,0.00028352,2]
[364777047,1749238275833,-150.0,0.00028353,2]
[364777048,1749238275843,-150.0,0.00028354,2]
[364777049,1749238275852,-787.0,0.00028356,5]
[364777050,1749238275861,-597.0,0.00028356,5]
[364777051,1749238275871,-150.0,0.00028361,2]
[364777052,1749238275880,-9264.8466542,0.00028374,2]
[364777053,1749238275889,-113983.4412729,0.00028374,2]
[364777054,1749238275898,-1204.54,0.0002838,5]
[364777055,1749238275907,-1204.54,0.0002838,5]
[364777056,1749238275916,-151.0,0.00028381,7]
[364777057,1749238275926,-151.0,0.00028381,7]
[364777058,1749238275935,-151.0,0.00028381,7]
[364777059,1749238275944,-151.0,0.00028381,7]
[364777060,1749238275952,-151.0,0.00028381,7]
[364777061,1749238275961,-151.0,0.00028381,7]
[364777062,1749238275970,-162.784764,0.00028381,7]
[364777063,1749238275978,-162.784764,0.00028381,7]
[364777064,1749238275986,-151.0,0.00028381,7]
[364777065,1749238275995,-151.0,0.00028381,7]
[364777066,1749238276003,-151.0,0.00028381,7]
[364777067,1749238276012,-151.0,0.00028381,7]
[364777068,1749238276020,-151.0,0.00028381,7]
[364777069,1749238276029,-151.0,0.00028381,7]
[364777070,1749238276042,-151.0,0.00028381,7]
[364777071,1749238276050,-151.0,0.00028381,7]
[364777072,1749238276059,-589.063325,0.00028381,7]
[364777073,1749238276068,-1027.574881,0.00028381,7]
[364777074,1749238276076,-1027.574881,0.00028381,7]
[364777075,1749238276085,-151.0,0.00028381,7]
[364777076,1749238276094,-151.0,0.00028381,7]
[364777077,1749238276103,-151.0,0.00028381,7]
[364777078,1749238276112,-151.0,0.00028381,7]
[364777079,1749238276121,-151.0,0.00028381,7]
[364777080,1749238276130,-151.0,0.00028381,7]
[364777081,1749238276139,-1184.242658,0.00028381,7]
[364777082,1749238276148,-1184.242658,0.00028381,7]
[364777083,1749238276157,-602.044555,0.00028381,7]
[364777084,1749238276166,-602.044555,0.00028381,7]
[364777085,1749238276175,-151.0,0.00028381,7]
[364777086,1749238276187,-151.0,0.00028381,7]
[364777087,1749238276196,-151.0,0.00028381,7]
[364777088,1749238276206,-151.0,0.00028381,7]
[364777089,1749238276214,-151.0,0.00028381,7]
[364777090,1749238276223,-151.0,0.00028381,7]
[364777091,1749238276233,-151.0,0.00028381,7]
[364777092,1749238276242,-166.74833,0.00028381,7]
[364777093,1749238276251,-166.74833,0.00028381,7]
[364777094,1749238276260,-290.092063,0.00028381,7]
[364777095,1749238276269,-290.092063,0.00028381,7]
[364777096,1749238276278,-170.339594,0.00028381,7]
[364777097,1749238276287,-151.0,0.00028381,7]
[364777098,1749238276296,-395.142899,0.00028381,7]
[364777099,1749238276305,-395.142899,0.00028381,7]
[364777100,1749238276315,-256.08438,0.00028381,7]
[364777101,1749238276324,-256.08438,0.00028381,7]
[364777102,1749238276334,-151.0,0.00028381,7]
[364777103,1749238276343,-151.0,0.00028381,7]
[364777104,1749238276352,-151.0,0.00028381,7]
[364777105,1749238276361,-741.477682,0.00028381,7]
[364777106,1749238276370,-741.477682,0.00028381,7]
[364777107,1749238276379,-151.0,0.00028381,7]
[364777108,1749238276388,-151.0,0.00028381,7]
[364777109,1749238276398,-151.0,0.00028381,7]
[364777110,1749238276407,-317.999202,0.00028381,7]
[364777111,1749238276417,-317.999202,0.00028381,7]
[364777112,1749238276427,-1118.221366,0.00028381,7]
[364777113,1749238276437,-2345.629707,0.00028381,7]
[364777114,1749238276446,-1118.221366,0.00028381,7]
[364777115,1749238276455,-2345.629707,0.00028381,7]
[364777116,1749238276465,-151.0,0.00028381,7]
[364777117,1749238276474,-188.018762,0.00028381,7]
[364777118,1749238276483,-151.0,0.00028381,7]
[364777119,1749238276492,-233.095165,0.00028381,7]
[364777120,1749238276502,-233.095165,0.00028381,7]
[364777121,1749238276515,-151.0,0.00028381,7]
[364777122,1749238276524,-151.0,0.00028381,7]
[364777123,1749238276533,-823.3061585,0.00028381,2]
[364777124,1749238276541,-151.0,0.00028381,7]
[364777125,1749238276551,-189.067661,0.00028381,7]
[364777126,1749238276560,-189.067661,0.00028381,7]
[364777127,1749238276569,-179.508406,0.00028381,7]
[364777128,1749238276580,-461.975126,0.00028381,7]
[364777129,1749238276589,-151.0,0.00028381,7]
[364777130,1749238276597,-179.508406,0.00028381,7]
[364777131,1749238276606,-461.975126,0.00028381,7]
[364777132,1749238276616,-269.254107,0.00028381,7]
[364777133,1749238276626,-3016.8903334,0.00028381,2]
[364777134,1749238276636,-269.254107,0.00028381,7]
[364777135,1749238276646,-151.0,0.00028381,7]
[364777136,1749238276656,-151.0,0.00028381,7]
[364777137,1749238276666,-1232.611643,0.00028381,7]
[364777138,1749238276676,-1232.611643,0.00028381,7]
[364777139,1749238276686,-189.938106,0.00028381,7]
[364777140,1749238276696,-151.0,0.00028381,7]
[364777141,1749238276705,-189.938106,0.00028381,7]
[364777142,1749238276715,-151.0,0.00028381,7]
[364777143,1749238276725,-662.984692,0.00028381,7]
[364777144,1749238276735,-662.984692,0.00028381,7]
[364777145,1749238276744,-1204.54,0.00028382,5]
[364777146,1749238276754,-151.0,0.00028383,7]
[364777147,1749238276763,-151.0,0.00028383,7]
[364777148,1749238276772,-151.0,0.00028383,7]
[364777149,1749238276783,-151.0,0.00028383,7]
[364777150,1749238276792,-151.0,0.00028383,7]
[364777151,1749238276802,-151.0,0.00028383,7]
[364777152,1749238276811,-151.0,0.00028383,7]
[364777153,1749238276820,-162.784764,0.00028383,7]
[364777154,1749238276830,-162.784764,0.00028383,7]
[364777155,1749238276839,-151.0,0.00028383,7]
[364777156,1749238276848,-151.0,0.00028383,7]
[364777157,1749238276858,-197.095984,0.00028383,7]
[364777158,1749238276867,-383.455473,0.00028383,7]
[364777159,1749238276876,-383.455473,0.00028383,7]
[364777160,1749238276885,-151.0,0.00028383,7]
[364777161,1749238276895,-151.0,0.00028383,7]
[364777162,1749238276904,-151.0,0.00028383,7]
[364777163,1749238276914,-151.0,0.00028383,7]
[364777164,1749238276923,-151.0,0.00028383,7]
[364777165,1749238276932,-151.0,0.00028383,7]
[364777166,1749238276942,-151.0,0.00028383,7]
[364777167,1749238276951,-151.0,0.00028383,7]
[364777168,1749238276960,-151.0,0.00028383,7]
[364777169,1749238276970,-151.0,0.00028383,7]
[364777170,1749238276979,-151.0,0.00028383,7]
[364777171,1749238276988,-151.0,0.00028383,7]
[364777172,1749238276997,-151.0,0.00028383,7]
[364777173,1749238277006,-151.0,0.00028383,7]
[364777174,1749238277015,-151.0,0.00028383,7]
[364777175,1749238277025,-1184.242658,0.00028383,7]
[364777176,1749238277035,-1317.765658,0.00028383,5]
[364777177,1749238277044,-1184.242658,0.00028383,7]
[364777178,1749238277053,-1517.919858,0.00028383,5]
[364777179,1749238277062,-151.0,0.00028383,7]
[364777180,1749238277072,-151.0,0.00028383,7]
[364777181,1749238277081,-151.0,0.00028383,7]
[364777182,1749238277091,-151.0,0.00028383,7]
[364777183,1749238277100,-602.044555,0.00028383,7]
[364777184,1749238277110,-480.0,0.00028383,5]
[364777185,1749238277118,-602.044555,0.00028383,7]
[364777186,1749238277128,-261.054565,0.00028383,7]
[364777187,1749238277138,-261.054565,0.00028383,7]
[364777188,1749238277147,-151.0,0.00028383,7]
[364777189,1749238277156,-261.054565,0.00028383,7]
[364777190,1749238277166,-261.054565,0.00028383,7]
[364777191,1749238277176,-151.0,0.00028383,7]
[364777192,1749238277186,-151.0,0.00028383,7]
[364777193,1749238277195,-172.604956,0.00028383,7]
[364777194,1749238277205,-172.604956,0.00028383,7]
[364777195,1749238277214,-172.604956,0.00028383,7]
[364777196,1749238277224,-172.604956,0.00028383,7]
[364777197,1749238277234,-480.0,0.00028383,5]
[364777198,1749238277243,-168.561443,0.00028383,5]
[364777199,1749238277253,-154.602926,0.00028383,7]
[364777200,1749238277264,-480.0,0.00028383,5]
[364777201,1749238277274,-151.0,0.00028383,7]
[364777202,1749238277284,-151.0,0.00028383,7]
[364777203,1749238277294,-480.0,0.00028383,5]
[364777204,1749238277305,-176.288002,0.00028383,7]
[364777205,1749238277314,-176.288002,0.00028383,7]
[364777206,1749238277324,-176.288002,0.00028383,7]
[364777207,1749238277333,-176.288002,0.00028383,7]
[364777208,1749238277343,-190.889101,0.00028383,7]
[364777209,1749238277352,-190.889101,0.00028383,7]
[364777210,1749238277362,-190.889101,0.00028383,7]
[364777211,1749238277372,-190.889101,0.00028383,7]
[364777212,1749238277382,-480.0,0.00028383,5]
[364777213,1749238277392,-480.0,0.00028383,5]
[364777214,1749238277402,-166.74833,0.00028383,7]
[364777215,1749238277412,-166.74833,0.00028383,7]
[364777216,1749238277421,-480.0,0.00028383,5]
[364777217,1749238277430,-290.092063,0.00028383,7]
[364777218,1749238277440,-290.092063,0.00028383,7]
[364777219,1749238277450,-151.0,0.00028383,7]
[364777220,1749238277459,-395.142899,0.00028383,7]
[364777221,1749238277469,-395.142899,0.00028383,7]
[364777222,1749238277479,-488.54,0.00028383,5]
[364777223,1749238277488,-256.08438,0.00028383,7]
[364777224,1749238277498,-256.08438,0.00028383,7]
[364777225,1749238277512,-480.0,0.00028383,5]
[364777226,1749238277522,-594.44,0.00028383,5]
[364777227,1749238277534,-151.0,0.00028383,7]
[364777228,1749238277543,-1080.27,0.00028383,5]
[364777229,1749238277554,-487.01,0.00028383,5]
[364777230,1749238277794,-480.0,0.00028383,5]
[364777231,1749238277804,-480.0,0.00028383,5]
[364777232,1749238277814,-1121.24,0.00028383,5]
[364777233,1749238277824,-965.99,0.00028383,5]
[364777234,1749238277835,-480.0,0.00028383,5]
[364777235,1749238277844,-151.0,0.00028383,7]
[364777236,1749238277854,-480.0,0.00028383,5]
[364777237,1749238277864,-634.69,0.00028383,5]
[364777238,1749238277873,-164.369548,0.00028383,5]
[364777239,1749238277883,-657.28,0.00028383,5]
[364777240,1749238277892,-480.0,0.00028383,5]
[364777241,1749238277902,-1036.73,0.00028383,5]
[364777242,1749238277912,-700.4,0.00028383,5]
[364777243,1749238277923,-522.03,0.00028383,5]
[364777244,1749238277933,-480.0,0.00028383,5]
[364777245,1749238277942,-480.0,0.00028383,5]
[364777246,1749238277951,-600.0,0.00028383,30]
[364777247,1749238277960,-772.01,0.00028383,5]
[364777248,1749238277969,-480.0,0.00028383,5]
[364777249,1749238277978,-480.0,0.00028383,5]
[364777250,1749238277987,-588.08,0.00028383,5]
[364777251,1749238277996,-510.66,0.00028383,5]
[364777252,1749238278006,-151.0,0.00028383,7]
[364777253,1749238278015,-302.42819561,0.00028383,5]
[364777254,1749238278024,-480.0,0.00028383,5]
[364777255,1749238278033,-776.42,0.00028383,5]
[364777256,1749238278043,-570.13,0.00028383,5]
[364777257,1749238278052,-566.75,0.00028383,5]
[364777258,1749238278061,-891.4,0.00028383,5]
[364777259,1749238278071,-480.0,0.00028383,5]
[364777260,1749238278080,-851.49,0.00028383,5]
[364777261,1749238278089,-741.477682,0.00028383,7]
[364777262,1749238278099,-652.79,0.00028383,5]
[364777263,1749238278108,-480.0,0.00028383,5]
[364777264,1749238278118,-741.477682,0.00028383,7]
[364777265,1749238278128,-151.0,0.00028383,7]
[364777266,1749238278137,-875.61,0.00028383,5]
[364777267,1749238278148,-533.65,0.00028383,5]
[364777268,1749238278157,-982.9,0.00028383,5]
[364777269,1749238278167,-480.0,0.00028383,5]
[364777270,1749238278178,-480.0,0.00028383,5]
[364777271,1749238278188,-724.05,0.00028383,5]
[364777272,1749238278198,-511.37,0.00028383,5]
[364777273,1749238278207,-637.08,0.00028383,5]
[364777274,1749238278217,-623.28,0.00028383,5]
[364777275,1749238278226,-480.0,0.00028383,5]
[364777276,1749238278236,-988.07,0.00028383,5]
[364777277,1749238278246,-666.13,0.00028383,5]
[364777278,1749238278256,-480.0,0.00028383,5]